Workbook

Sheet Introduction
B5: Celosia Budget
B6: Version 1.0
B7: Rachel Painter | I7: Eryn Bell
B8: Email: rpainter@utk.edu | I8: Email: ebell@utk.edu
B9: Becky Bowling
B10: Email: bowling10@utk.edu
B27: Programs in agriculture and natural resources, 4-H youth development, family and consumer sciences, and resource development.
B28: University of Tennessee Institute of Agriculture, U.S. Department of Agriculture and country governments cooperating.
B29: UT Extension provide equal opportunities in programs and employment.

Sheet Assumptions
B2: Assumptions
B5: This spreadsheet contains the 2025 University of Tennessee cut flower budget for Celosia. Quantities and prices can be modified on the budget for any light blue cell. This spreadsheet should not be considered representative of all circumstances and is provided as a template or guide that can be used to estimate cost of production. Inputs used and prices for inputs vary tremendously from farm-to-farm; as such, producers are encouraged to use their own inputs, input prices, and cost structures for budgeting and planning purposes.
B10: This budget assumes that this crop is part of a 1/4-acre cut flower operation (approximately 10,890 sq. ft.) managed by one full-time employee (40 hours per week), meaning the farm is assumed to have 5 production spaces of summer annual flowers grown on 1,000 square foot plots each. Expenses such as labor, utilities, equipment, and materials are shared across the entire operation, with each section bearing equal distribution of these costs (20%). This assumption allows for management and budgeting for a flower farm producing multiple flower types on a 1/4-acre plot.
B15: This budget assumes various celosia varieties planted on 9 inch spacing for a seeding rate of approximately 1,780 seeds in a 1,000 sq. ft. plot. (333 ft. length, 3 ft wide bed, with 4 rows of seeds per bed).
B17: Variable Costs
B19: 1The marketed rate represents the percentage of flower stems successfully sold after accounting for production losses and unsold inventory. Losses can occur from crop failure, transplant issues, harvest or post-harvest damage, and stems that remain unsold due to market limitations. Marketed rates typically vary depending on the producer’s production skills and experience, as well as anticipated market demand. Producers are encouraged to adjust the marketed rate to reflect experience and skills regarding management practices, crop conditions, and sales opportunities.
B26: 2An average of 5 stems per plant assumed based on data from a 2024 UT cut flower study.
B28: 3An average price per stem for direct to consumer sales was estimated using the Tennessee Farmers Market Price Reports for various farmers markets as well as prices from experienced producers from across the state. As significant regional and seasonal price variability may exist, users are encouraged to adjust this price to reflect market conditions based on specific location, customer demand, and production to improve the accuracy of the budget calculations. Source: https://arec.tennessee.edu/extension/tennessee-market-highlights/
B33: 4An assumption that all seeds are grown as transplants (plugs) by the producer for succession planting. Seed cost estimated as average cost of various varieties from common seed supplier prices. This estimate includes the average seed price calculated above and the cost of common growing medium, 606 black growing trays with 36 cells per tray, and energy use of a typical seed starting wire rack station using 16 T8, 18W, 4 ft. bulbs running for 16 hours per day for 2 months to grow transplants. The fixed cost of the wire rack station and bulbs are included in the general overhead fixed costs.
B39: 5For accurate fertilizer and lime recommendations, take a soil sample. An assumption of 20% of soil sample costs are distributed to this crop. Source: https://soillab.tennessee.edu/soil-testing/field-soil-samples/
B42: 6Total fertilizer and pest control applications split over multiple applications. Fertilizer and pest control applications are representative of typical operations in Tennessee after proper testing and following current University of Tennessee Extension recommendations. Recommendations are current at time of publication and will be updated regularly; however, recommendations for agricultural inputs including pesticide registrations may be updated and inclusion in the budget should not be interpreted as a recommendation for use. Consult a county Extension agent for current application and control recommendations.
B47: County Extension office contact information available here.
B48: 7Irrigation variable costs include water cost, driptape and attachments which would often be purchased annually. Irrigation is assumed to be set up as 3 ft wide beds with 2 drip lines of 5/8", 6 mil drip tape with a flow rate of 0.5 gpm. Water cost is estimated for applying 1 inch of water per week with 12 in. emitter spacing and average of water cost calculated from both urban and rural cities costs per 1,000 gal across Tennessee.
B53: 8Staple and ground cover cost estimated for a 6 inch sod staple with a flat top to secure a 3.2 oz woven black ground cover. If no ground cover is used, ground cover and staple cost can be removed.
B56: 9Flower netting costs include the purchase of 6-inch by 6-inch netting and step-in fence posts, which are used to support the netting for plant stabilization throughout the growing season.
B59: 10Labor is estimated as one full time employee managing the 1/4 acre operation. Therefore, 20% of the employee's time would be devoted to this crop, resulting in 8 hours per week for the number of weeks spent producing the crop. This assumption was accurate based on labor hours from a UT cut flower study in 2024. Labor rate is the USDA Adverse Wage Rate for farm workers for 2025.
B60: Source: https://flag.dol.gov/wage-data/adverse-effect-wage-rates#range
B62: 11Machinery repair and maintenance cost are estimated as 5% of purchase price of large equipment, with 20% of the cost allocated to this crop.
B65: 12Fuel and propane estimated to prepare ground, burn holes into woven ground cover, and maintain grass rows between production spaces throughout growing season. Current average prices are estimated, but should be adjusted to reflect current relevant prices.
B68: 13Typical harvest containers are assumed as a variable expense as some harvest containers may be damaged or provided for a customer for bulk purchases. Purchasing new harvest containers annually can assist with sanitation and be part of an integrated pest management strategy.
B71: 14Marketing cost are estimated at 20% of maximum gross sales. Marketing costs include packaging such as paper or plastic wrap, bands to secure stems, transportation to selling locations, promotional materials, and other costs not specified related to post-harvest and selling expenses.
B75: 15An operating interest for 6 months of operating capital is estimated at a current interest rate of 7% of all variable expenses. This should be adjusted to reflect current interest rates and considered an opportunity cost of capital being utilized for this enterprise.
B78: Fixed Costs
B79: 16Small tools and equipment include shovels, rakes, a propane torch to burn holes in ground cover, a wheel barrow, hand pruners, gloves, loppers, hammers, mallets, and the main irrigation hookup equipment costs are estimated with a useful life of 3 years and 20% of calculated annual expenses allocated to this crop.
B83: 17Estimated cost of common tiller and lawn mower used for cut flower production and operation maintenance are calculated for the 1/4 acre operation with a useful life of 5 years and 20% of cost allocated to this crop.
B86: 18Expenses for a storage and post-harvest handling building with dimensions of 15'X20'X16' are estimated with a useful life of 15 years, along with interest, insurance, property taxes, repairs on the building. This building would be used for the entire operation with 20% of the annual cost allocated to this crop.
B90: 19Returns to land, ownership, and capital are estimated at 10% of the total variable costs, reflecting the opportunity cost of utilizing the land and invested capital in the flower operation.
B93: 20General overhead costs are estimated at 10% of total production costs of the budget. These costs include expenses not previously accounted for including the transplant starting wire rack and lights, general utilities, insurance, office supplies, administrative or professional support or fees.

Sheet Celosia Production Budget
A1: Celosia Budget
A2: Flower Variety | B2: Celosia, Various Varieties
A3: Production Space | B3: 1000 | C3: sq. ft.
A4: Seeding Rate | B4: 1780 | C4: seeds
A5: Marketed Rate1 | B5: 0.65
A6: Average Stems/ Plant2 | B6: ='Celosia Input Calculations'!K$31 -> 4.838141026
A8: Gross Income | B8: Unit | C8: Quantity | D8: $/Unit | E8: Total Estimate
A9: Celosia Stems3 | B9: Stem | C9: =B4*B5*B6 -> 5597.729167 | D9: 1 | E9: =C9*D9 -> 5597.729167
A11: Variable Costs | B11: Unit | C11: Quantity | D11: $/Unit | E11: Total Estimate
A12: Transplants (growing plugs)4 | B12: plugs | C12: =B4 -> 1780 | D12: ='Celosia Input Calculations'!C$56 -> 0.1141628652 | E12: =C12*D12 -> 203.2099
A13: Soil Test5 | B13: test | C13: 0.2 | D13: 15 | E13: =C13*D13 -> 3
A14: Fertilizer - 20-10-206 | B14: lb. | C14: ='Celosia Input Calculations'!F$60 -> 10 | D14: ='Celosia Input Calculations'!I$60 -> 1.5032 | E14: 15.032
A15: Fungicide - cost of 1 spray throughout growing season6 | E15: ='Celosia Input Calculations'!N$90 -> 1.60875
A16: Insecticide - cost of 2 sprays throughout growing season6 | E16: ='Celosia Input Calculations'!M$96 -> 4.7425
A17: Irrigation Supplies7
A18: Dripline purchased annually | B18: linear ft. | C18: ='Celosia Input Calculations'!E$105 -> 666.6666667 | D18: ='Celosia Input Calculations'!H$105 -> 0.0496 | E18: =C18*D18 -> 33.06666667
A19: Attachments purchased annually | C19: 1 | D19: ='Celosia Input Calculations'!H$128 -> 67.06 | E19: 67.06
A20: Operation of Irrigation | B20: water use in 1,000 gal. | C20: ='Celosia Input Calculations'!K$132 -> 15.08754 | D20: ='Celosia Input Calculations'!L$132 -> 6.836333333 | E20: =C20*D20 -> 103.1434526
A21: Staples for Ground Cover8 | B21: staples | C21: ='Celosia Input Calculations'!G$69 -> 1000 | D21: ='Celosia Input Calculations'!D$71 -> 0.07795 | E21: =D21*C21 -> 77.95
A22: Black Woven Ground Cover8 | B22: ft. | C22: 1000 | D22: ='Celosia Input Calculations'!G$66 -> 0.0300137037 | E22: =C22*D22 -> 30.0137037
A23: Flower Netting9 | B23: sq. ft. | C23: 1000 | D23: ='Celosia Input Calculations'!F$82 -> 0.075 | E23: 75
A24: Stakes9 | B24: stakes | C24: ='Celosia Input Calculations'!H$75 -> 84 | D24: ='Celosia Input Calculations'!I$77 -> 0.9966666667 | E24: 83.72
A25: Labor10 | B25: hours | C25: ='Celosia Input Calculations'!F$141 -> 120 | D25: ='Celosia Input Calculations'!C$143 -> 15.87 | E25: 1904.4
A26: Machinery Repair and Maintenance (5%)11 | B26: 1,000 sq. ft. | C26: 1 | D26: ='Celosia Input Calculations'!B$157 -> 60 | E26: =D26*C26 -> 60
A27: Fuel12 | B27: gal. | C27: ='Celosia Input Calculations'!H$179 -> 6 | D27: ='Celosia Input Calculations'!E$180 -> 3.75 | E27: =C27*D27 -> 22.5
A28: Propane12 | B28: lb. | C28: ='Celosia Input Calculations'!B$182 -> 0.4 | D28: ='Celosia Input Calculations'!E$181 -> 6.5 | E28: 2.6
A29: Harvest Containers13 | B29: each | C29: 10 | D29: ='Celosia Input Calculations'!D$137 -> 2.05 | E29: =C29*D29 -> 20.5
A30: Marketing Costs (20% of Estimated Gross Income)14 | D30: =E9*0.2 -> 1119.545833 | E30: =D30 -> 1119.545833
A31: Operating Interest (7% of Variable Costs)15 | C31: 0.07 | D31: =(SUM(E12:E30)/2) -> 1913.546403 | E31: =D31*C31 -> 133.9482482
A32: Total Variable Costs | E32: =SUM(E12:E31) -> 3961.041055
A34: Fixed Costs | B34: Unit | C34: Quantity | D34: $/Unit | E34: Total Estimate
A35: Small Tools and Equipment16 | B35: Useful Life of 3 Years | C35: 1 | D35: ='Celosia Input Calculations'!B$175 -> 102.1406667 | E35: =C35*D35 -> 102.1406667
A36: Tiller17 | B36: Model 732 Tiller | C36: 1 | D36: ='Celosia Input Calculations'!B$152 -> 18.56 | E36: =C36*D36 -> 18.56
A37: Lawn Mower17 | B37: Mower 35" | C37: 1 | D37: ='Celosia Input Calculations'!B$155 -> 10.24 | E37: =D37*C37 -> 10.24
A38: Irrigation System Main Component Attachments | C38: 1 | D38: ='Celosia Input Calculations'!E$130 -> 18.07666667 | E38: =D38*C38 -> 18.07666667
A39: Storage and Post-Harvest Handling Building18 | B39: (15'X20'X16') | C39: 1 | D39: ='Celosia Input Calculations'!N$190 -> 166.9676142 | E39: =C39*D39 -> 166.9676142
A40: Returns to Land, Ownership, and Capital (10% of Variable Costs)19 | D40: =E$32*0.1 -> 396.1041055 | E40: =D40 -> 396.1041055
A41: General Overhead Cost (15% of Total Production Cost)20 | D41: =(SUM($E$32,$E$35:$E$40))*0.15 -> 700.9695161 | E41: =D41 -> 700.9695161
A42: Total Fixed Costs | E42: =SUM(E35:E41) -> 1413.058569
A43: Total Specified Costs | E43: =E42+E32 -> 5374.099624
A45: Returns Over Specified Cost | E45: =E9-E43 -> 223.629543
A125: Celosia Budget
A126: Flower Variety | B126: Celosia, Various Varieties
A127: Production Space | B127: 1000 | C127: sq. ft.
A128: Seeding Rate | B128: 1780 | C128: seeds
A129: Marketed Rate | B129: 0.65
A130: Average Stems/ Plant | B130: ='Celosia Input Calculations'!K$31 -> 4.838141026
A132: Gross Income | B132: Unit | C132: Quantity | D132: $/Unit | E132: Total Estimate
A133: Celosia Stems | B133: Stem | C133: =B128*B129*B130 -> 5597.729167 | D133: 1 | E133: =C133*D133 -> 5597.729167
A135: Variable Costs | B135: Unit | C135: Quantity | D135: $/Unit | E135: Total Estimate
A136: Transplants (growing plugs) | B136: plugs | C136: =B128 -> 1780 | D136: ='Celosia Input Calculations'!C$56 -> 0.1141628652 | E136: =C136*D136 -> 203.2099
A137: Soil Test | B137: test | C137: 0.2 | D137: 15 | E137: =C137*D137 -> 3
A138: Fertilizer - 20-10-20 | B138: lb. | C138: ='Celosia Input Calculations'!F$60 -> 10 | D138: ='Celosia Input Calculations'!I$60 -> 1.5032 | E138: 15.032
A139: Fungicide - cost of 1 spray throughout growing season | E139: ='Celosia Input Calculations'!N$90 -> 1.60875
A140: Insecticide - cost of 4 sprays throughout growing season | E140: ='Celosia Input Calculations'!M$96 -> 4.7425
A141: Irrigation Supplies
A142: Dripline purchased annually | B142: linear ft. | C142: ='Celosia Input Calculations'!E$105 -> 666.6666667 | D142: ='Celosia Input Calculations'!H$105 -> 0.0496 | E142: =C142*D142 -> 33.06666667
A143: Attachments purchased annually | C143: 1 | D143: ='Celosia Input Calculations'!H$128 -> 67.06 | E143: 67.06
A144: Operation of Irrigation | B144: water use in 1,000 gal. | C144: ='Celosia Input Calculations'!K$132 -> 15.08754 | D144: ='Celosia Input Calculations'!L$132 -> 6.836333333 | E144: =C144*D144 -> 103.1434526
A145: Staples for Ground Cover | B145: staples | C145: ='Celosia Input Calculations'!G$69 -> 1000 | D145: ='Celosia Input Calculations'!D$71 -> 0.07795 | E145: =D145*C145 -> 77.95
A146: Black Woven Ground Cover | B146: ft. | C146: 1000 | D146: ='Celosia Input Calculations'!G$66 -> 0.0300137037 | E146: =C146*D146 -> 30.0137037
A147: Flower Netting | B147: sq. ft. | C147: 1000 | D147: ='Celosia Input Calculations'!F$82 -> 0.075 | E147: 75
A148: Stakes | B148: stakes | C148: ='Celosia Input Calculations'!H$75 -> 84 | D148: ='Celosia Input Calculations'!I$77 -> 0.9966666667 | E148: 83.72
A149: Labor | B149: hours | C149: ='Celosia Input Calculations'!F$141 -> 120 | D149: ='Celosia Input Calculations'!C$143 -> 15.87 | E149: 1904.4
A150: Machinery Repair and Maintenance (5%) | B150: 1,000 sq. ft. | C150: 1 | D150: ='Celosia Input Calculations'!B$157 -> 60 | E150: =D150*C150 -> 60
A151: Fuel | B151: gal. | C151: ='Celosia Input Calculations'!H$179 -> 6 | D151: ='Celosia Input Calculations'!E$180 -> 3.75 | E151: =C151*D151 -> 22.5
A152: Propane | B152: lb. | C152: ='Celosia Input Calculations'!B$182 -> 0.4 | D152: ='Celosia Input Calculations'!E$181 -> 6.5 | E152: 2.6
A153: Harvest Containers | B153: each | C153: 10 | D153: ='Celosia Input Calculations'!D$137 -> 2.05 | E153: =C153*D153 -> 20.5
A154: Marketing Costs (20% of Estimated Gross Income) | D154: =E133*0.2 -> 1119.545833 | E154: =D154 -> 1119.545833
A155: Operating Interest (7% of Variable Costs) | C155: 0.07 | D155: =(SUM(E136:E154)/2) -> 1913.546403 | E155: =D155*C155 -> 133.9482482
A156: Total Variable Costs | E156: =SUM(E136:E155) -> 3961.041055
A158: Fixed Costs | B158: Unit | C158: Quantity | D158: $/Unit | E158: Total Estimate
A159: Small Tools and Equipment | B159: Useful Life of 3 Years | C159: 1 | D159: ='Celosia Input Calculations'!B$175 -> 102.1406667 | E159: =C159*D159 -> 102.1406667
A160: Tiller | B160: Model 732 Tiller | C160: 1 | D160: ='Celosia Input Calculations'!B$152 -> 18.56 | E160: =C160*D160 -> 18.56
A161: Lawn Mower | B161: Mower 35" | C161: 1 | D161: ='Celosia Input Calculations'!B$155 -> 10.24 | E161: =D161*C161 -> 10.24
A162: Irrigation System Main Component Attachments | C162: 1 | D162: ='Celosia Input Calculations'!E$130 -> 18.07666667 | E162: =D162*C162 -> 18.07666667
A163: Storage and Post-Harvest Handling Building | B163: (15'X20'X16') | C163: 1 | D163: ='Celosia Input Calculations'!N$190 -> 166.9676142 | E163: =C163*D163 -> 166.9676142
A164: Returns to Land, Ownership, and Capital (10% of Variable Costs) | D164: =E$32*0.1 -> 396.1041055 | E164: =D164 -> 396.1041055
A165: General Overhead Cost (15% of Total Production Cost) | D165: =(SUM($E$32,$E$35:$E$40))*0.15 -> 700.9695161 | E165: =D165 -> 700.9695161
A166: Total Fixed Costs | E166: =SUM(E159:E165) -> 1413.058569
A167: Total Specified Costs | E167: =E166+E156 -> 5374.099624
A169: Returns Over Specified Cost | E169: =E133-E167 -> 223.629543

Sheet Celosia Input Calculations (hidden)
A1: 1000 | B1: sq ft bed | D1: 3 ft wide by 333.3 ft long bed. 9 inch spacing means 4 rows of seeds per bed for approx 1,780 seeds.
A2: ='Celosia Production Budget'!B4 -> 1780 | B2: seeds
A4: Planting Data
A5: Row | B5: Variety | C5: Type | D5: N Level | E5: Succession | F5: Number Planted | G5: Survived | H5: Square feet/plot | I5: Square feet/MedN | J5: Square feet/LowN | K5: Total Stems/Plot | L5: Total Stems/MedN | M5: Total Stems/LowN | N5: Stems/ft2 | O5: Avg Stems/ft2/cultivar/N Level
A6: 1 | B6: Act Mix | C6: Celosia | D6: Med | E6: 1 | F6: 35 | G6: 35 | H6: 15 | I6: =H6 -> 15 | K6: 57 | L6: =K6 -> 57 | N6: =K6/H6 -> 3.8
A7: 2 | B7: Act Mix | C7: Celosia | D7: Med | E7: 2 | F7: 25 | G7: 15 | H7: - | I7: =H7 -> - | K7: - | L7: =K7 -> - | N7: -
A8: 3 | B8: Act Mix | C8: Celosia | D8: Med | E8: 3 | F8: 18 | G8: 18 | H8: 9 | I8: =H8 -> 9 | K8: 44 | L8: =K8 -> 44 | N8: =K8/H8 -> 4.888888889 | O8: =AVERAGE(N6,N8) -> 4.344444444
A9: 1 | B9: Act Mix | C9: Celosia | D9: Low | E9: 1 | F9: 24 | G9: 24 | H9: 12 | J9: =H9 -> 12 | K9: 15 | M9: =K9 -> 15 | N9: =K9/H9 -> 1.25
A10: 2 | B10: Act Mix | C10: Celosia | D10: Low | E10: 2 | F10: 25 | G10: 22 | H10: 12 | J10: =H10 -> 12 | K10: 41 | M10: =K10 -> 41 | N10: =K10/H10 -> 3.416666667
A11: 2 | B11: Act Mix | C11: Celosia | D11: Low | E11: 3 | F11: 19 | G11: 19 | H11: 9 | J11: =H11 -> 9 | K11: 31 | M11: =K11 -> 31 | N11: =K11/H11 -> 3.444444444 | O11: =AVERAGE((N9:N11)) -> 2.703703704
A12: 1 | B12: Act Pink | C12: Celosia | D12: Med | E12: 1 | F12: 35 | G12: 35 | H12: 15 | I12: =H12 -> 15 | K12: 52 | L12: =K12 -> 52 | N12: =K12/H12 -> 3.466666667
A13: 2 | B13: Act Pink | C13: Celosia | D13: Med | E13: 2 | F13: 30 | G13: 0 | H13: - | I13: =H13 -> - | K13: - | L13: =K13 -> - | N13: -
A14: 3 | B14: Act Pink | C14: Celosia | D14: Med | E14: 3 | F14: 20 | G14: 20 | H14: 9 | I14: =H14 -> 9 | K14: 42 | L14: =K14 -> 42 | N14: =K14/H14 -> 4.666666667 | O14: =AVERAGE(N12,N14) -> 4.066666667
A15: 1 | B15: Act Pink | C15: Celosia | D15: Low | E15: 1 | F15: 28 | G15: 28 | H15: 12 | J15: =H15 -> 12 | K15: 49 | M15: =K15 -> 49 | N15: =K15/H15 -> 4.083333333
A16: 2 | B16: Act Pink | C16: Celosia | D16: Low | E16: 2 | F16: 30 | G16: 21 | H16: 13.5 | J16: =H16 -> 13.5 | K16: 78 | M16: =K16 -> 78 | N16: =K16/H16 -> 5.777777778
A17: 2 | B17: Act Pink | C17: Celosia | D17: Low | E17: 3 | F17: 19 | G17: 19 | H17: 9 | J17: =H17 -> 9 | K17: 13 | M17: =K17 -> 13 | N17: =K17/H17 -> 1.444444444 | O17: =AVERAGE(N15:N17) -> 3.768518519
A18: 1 | B18: Sunday Green | C18: Celosia | D18: Med | E18: 1 | F18: 35 | G18: 35 | H18: 30 | I18: =H18 -> 30 | K18: 302 | L18: =K18 -> 302 | N18: =K18/H18 -> 10.06666667
A19: 1 | B19: Sunday Green | C19: Celosia | D19: Med | E19: 1 | F19: 35 | G19: 34 | H19: - | I19: =H19 -> - | K19: - | L19: =K19 -> - | N19: -
A20: 3 | B20: Sunday Green | C20: Celosia | D20: Med | E20: 2 | F20: 35 | G20: 33 | H20: 15 | I20: =H20 -> 15 | K20: 324 | L20: =K20 -> 324 | N20: =K20/H20 -> 21.6 | O20: =AVERAGE(N18,N20) -> 15.83333333
A21: 1 | B21: Sunday Green | C21: Celosia | D21: Low | E21: 1 | F21: 24 | G21: 20 | H21: 12 | J21: =H21 -> 12 | K21: 98 | M21: =K21 -> 98 | N21: 8.166666667
A22: 2 | B22: Sunday Green | C22: Celosia | D22: Low | E22: 2 | F22: 35 | G22: 31 | H22: 13.5 | J22: =H22 -> 13.5 | K22: 182 | M22: =K22 -> 182 | N22: 13.48148148 | O22: =AVERAGE(N21:N22) -> 10.82407407
A23: 1 | B23: Pampas Plume | C23: Celosia | D23: Med | E23: 1 | F23: 35 | G23: 35 | H23: 15 | I23: =H23 -> 15 | K23: 361 | L23: =K23 -> 361 | N23: 24.06666667
A24: 3 | B24: Pampas Plume | C24: Celosia | D24: Med | E24: 2 | F24: 32 | G24: 28 | H24: 13.5 | I24: =H24 -> 13.5 | K24: 181 | L24: =K24 -> 181 | N24: 13.40740741 | O24: =AVERAGE(N23:N24) -> 18.73703704
A25: 1 | B25: Pampas Plume | C25: Celosia | D25: Low | E25: 1 | F25: 33 | G25: 33 | H25: 15 | J25: =H25 -> 15 | K25: 325 | M25: =K25 -> 325 | N25: 21.66666667
A26: 2 | B26: Pampas Plume | C26: Celosia | D26: Low | E26: 2 | F26: 32 | G26: 29 | H26: 13.5 | J26: =H26 -> 13.5 | K26: 162 | M26: =K26 -> 162 | N26: 12 | O26: =AVERAGE(N25:N26) -> 16.83333333
A27: 1 | B27: Flamingo Feather | C27: Celosia | D27: Med | E27: 1 | F27: 37 | G27: 37 | H27: 15 | I27: =H27 -> 15 | K27: 229 | L27: =K27 -> 229 | N27: 15.26666667
A28: 3 | B28: Flamingo Feather | C28: Celosia | D28: Med | E28: 2 | F28: 32 | G28: 25 | H28: 12 | I28: =H28 -> 12 | K28: 190 | L28: =K28 -> 190 | N28: 15.83333333 | O28: =AVERAGE(N27:N28) -> 15.55
A29: 1 | B29: Flamingo Feather | C29: Celosia | D29: Low | E29: 1 | F29: 30 | G29: 28 | H29: 13.5 | J29: =H29 -> 13.5 | K29: 243 | M29: =K29 -> 243 | N29: 18
F30: =SUM(F6:F29) -> 703 | G30: =SUM(G6:G29) -> 624 | H30: =SUM(H6:H29) -> 283.5 | K30: =SUM(K6:K29) -> 3019
F31: Avg. Survival Rate | G31: =G30/F30 -> 0.8876244666 | J31: Stems Per Plant | K31: =K30/G30 -> 4.838141026
A33: Stem Price Data
A34: Source | B34: Price
A35: https://beeswingfarm.com/wholesale-florals-by-season-costs/#latesummer | B35: 1.25
A37: Average Price Per Stem | B37: =B35 -> 1.25
A39: Seed Prices
A40: Seed Prices from Johnny's | B40: Number of Seeds | C40: Price | D40: Average Seed Price
A41: Sunday Mix | B41: 500 | C41: 39.9 | D41: =C41/B41 -> 0.0798
A42: Sunday Bright Pink | B42: 500 | C42: 39.9 | D42: =C42/B42 -> 0.0798
A43: Chief Carmine | B43: 5000 | C43: 40 | D43: 0.008
A44: Flamingo Purple | B44: 1000 | C44: 10.5 | D44: 0.0105
A45: Zinderella Peach | B45: 500 | C45: 39.9 | D45: 0.0798
D46: =AVERAGE(D41:D45) -> 0.05158
B47: Trays per bag | C47: Trays needed | D47: # Bags Needed | E47: Price per bag | F47: Price for Plugs
A48: Promix 2.8 cu ft bags | B48: 40 | C48: 50 | D48: =C48/B48 -> 1.25 | E48: 21.79 | F48: =D48*E48 -> 27.2375
A49: planting all as plugs
A51: Growing Transplants cost addition to seed cost | B51: For all seeds | D51: Cells per tray | E51: Price Per Tray | F51: # of Trays | G51: Total tray price
A52: Avg seed cost | B52: =A2*D46 -> 91.8124 | D52: 36 | E52: 0.8 | F52: =C48 -> 50 | G52: =E52*F52 -> 40
A53: Growing Medium | B53: =F48 -> 27.2375 | D53: bulbs | E53: Wattage | F53: hours run a day | G53: Electricity cost per kwh | I53: Cost per month for 1 bulb | J53: Cost per month for all bulbs | K53: Months run
A54: Trays | B54: =G52 -> 40 | D54: 16 | E54: 18 | F54: 16 | G54: 0.16 | I54: =1.38 -> 1.38 | J54: =I54*D54 -> 22.08 | K54: 2 | L54: =J54*K54 -> 44.16
A55: Seed starting light energy use | B55: =L54 -> 44.16
A56: Total cost of Transplants per Transplant | B56: =SUM(B52:B55) -> 203.2099 | C56: =B56/A2 -> 0.1141628652
A58: Fertilizer
A59: Fertilizer | B59: Lbs. of actual N per 1,000 sq ft | C59: N per bag | D59: Lbs. in Bag | E59: lbs of N in bag | F59: Applying lbs of product | G59: Receipt Price | H59: Lbs. in Bag | I59: Price/Lb.
A60: Medium appl of fertilizer - 20-10-20 | B60: 2 | C60: 0.2 | D60: 25 | E60: =D60*C60 -> 5 | F60: =B60*E60 -> 10 | G60: 37.58 | H60: 25 | I60: =G60/H60 -> 1.5032
A61: *Note: 2 pounds of nitrogen per 1,000 sq ft is medium fertilization split over 8 applications total
A63: Ground Cover
A64: Ground Cover | B64: width | C64: length | D64: Total sq ft | E64: price each | G64: Price per sq ft | H64: Total sq ft used
A65: DeWitt 3.2 oz Sunbelt, Woven Ground Cover Black 6 ft by 300 | B65: 6 | C65: 300 | D65: =B65*C65 -> 1800 | E65: 162.074 | G65: =E65/D65 -> 0.09004111111 | H65: 1000
G66: =G65/3 -> 0.0300137037 | H66: Lats 3 Years
A67: Staples
A68: Staples | B68: Total Bought | C68: Cost | D68: Cost per Staple | E68: Staples per Sq. Ft. | F68: Total Sq. Ft. | G68: Total # Staples
A69: Pro trade 6 inch sod staple flat top | B69: 300 | C69: 18 | D69: =C69/B69 -> 0.06 | E69: 1 | F69: 1000 | G69: =F69*E69 -> 1000
B70: 100 | C70: 9.59 | D70: =C70/B70 -> 0.0959
C71: avg | D71: =(D70+D69)/2 -> 0.07795
A73: Flower Stakes
B74: Price per Stake | C74: Stakes every 8 Ft. | D74: Stakes on Sides in Ft. | E74: Width of Bed in Ft. | F74: 1000 Sq. Ft. | G74: # of Sections of Stakes | H74: Stakes Needed | I74: Total Price of Stakes
A75: Step in fence post TSC, 2 inch, 4 ft tall | B75: 2.99 | C75: 8 | D75: 2 | E75: 3 | F75: =1000/E75 -> 333.3333333 | G75: =F75/C75 -> 41.66666667 | H75: 84 | I75: =H75*B75 -> 251.16
I76: =I75/3 -> 83.72 | J76: Lasts for Three Years
I77: =I76/H75 -> 0.9966666667 | J77: Per Stake
A79: Flower Netting
B80: Roll Width in ft | C80: Roll Length in ft | D80: Roll Total sq ft | E80: % of Roll Needed | F80: Netting Roll Price
A81: Tenax plant support 6"X6" | B81: 4 | C81: 328 | D81: =B81*C81 -> 1312 | E81: =1000/D81 -> 0.762195122 | F81: 75
F82: =F81/1000 -> 0.075 | G82: Per Square Foot
A84: Fungicide
A85: Fungicide | B85: number of sprays | C85: max application rate tbspoon per 1 gallon of water | D85: tablespoon in an oz | E85: application rate per 1 gal water in oz | G85: Gallons per 1,000 sq ft | H85: Total amount in oz to apply per growing | J85: Price for product | K85: oz in bottle | L85: price per oz | M85: Total cost for application per season | P85: Links
A86: Chlorothalonil Daconil -site one commercial | B86: 3 | E86: 3.6 | G86: 1 | H86: =(E86*G86)*B86 -> 10.8 | J86: 210 | K86: 320 | L86: =J86/K86 -> 0.65625 | M86: =H86*L86 -> 7.0875 | N86: using smaller bottles instead of commercial price here | P86: https://www.siteone.com/71418fung-daconil-weatherstik-fungicide-25-gal-agency/p/769562?store=454&cid=lia|siteone_2023_pest_XXXXX|{adgroup}|google&ds_k=&xmid=xm_%ebuy!_%25epid!_%ecid!&gad_source=1&gclid=Cj0KCQiA88a5BhDPARIsAFj595jFwv5HpkzBFqanxnnpc2uCP3M6wCFNlwqbts9ryoiWxF07CwchDZcaAokhEALw_wcB
A87: chlorothalonil - daconil | B87: 1 | C87: 3 | D87: 0.5 | E87: =C87*D87 -> 1.5 | G87: 1 | H87: =(E87*G87)*B87 -> 1.5 | J87: 17.16 | K87: 16 | L87: =J87/K87 -> 1.0725 | M87: =H87*L87 -> 1.60875 | P87: https://www.homedepot.com/p/Daconil-16-oz-Concentrate-Fungicide-100536524/202268570
A88: Copper - capt jack's | B88: 2 | E88: 2 | G88: 2.3 | H88: =(E88*G88)*B88 -> 9.2 | J88: 17.98 | K88: 16 | L88: =J88/K88 -> 1.12375 | M88: =H88*L88 -> 10.3385 | P88: https://www.homedepot.com/p/Bonide-Captain-Jack-s-Copper-Fungicide-16-oz-Concentrate-for-Organic-Gardening-Controls-Common-Diseases-811/203911375
B90: copper - 1.1 to 2.3 gallons of diluted spray per 1,000 sq ft is application rate with 0.5 to 2.0 fluid oz of product range mixed in. took max for both | M90: Fungicide use for celosia | N90: =M87*B87 -> 1.60875
A91: blue is used in this budget | B91: 1 gal per 1,000 sq ft. in rule of thumb for spraying for leaf coverage from Celeste. For daconil commercial product, 3.6 oz per 1,000 sq foot is application rate for single application recommendation from label.
B92: spray for leaf runoff, spot spraying
A94: Insecticide
B95: nu of sprays | E95: application rate per 1 gal water in oz | G95: gallons per 1,000 sq ft | H95: total amount in oz to apply per growing | J95: Price for product | K95: oz in bottle | L95: price per oz | M95: Total cost for application per season
A96: Sevin liquid - zetacypermethrin | B96: 2 | E96: 4 | G96: 1 | H96: =(E96*G96)*B96 -> 8 | J96: 18.97 | K96: 32 | L96: =J96/K96 -> 0.5928125 | M96: =(L96*H96) -> 4.7425 | P96: https://www.homedepot.com/p/Sevin-32-oz-16-000-sq-ft-Outdoor-Lawn-and-Garden-Insect-Killer-Concentrate-3-Month-Control-100530123/303593798
A97: separate sprays or tank mixed?
J98: knoxville seed and supply
A100: Irrigation System
B101: total sq ft
A102: 3 ft wide beds, 2 lines, 200 linear feet of tape of that, so if it is 3 ft wide, 666.67 linear feet of tape | B102: 1000
A104: Variable only one year use: | B104: Bed widthin ft | C104: bed length in ft | D104: number of lines in bed | E104: Linear ft of driptape needed | F104: Price of driptape | G104: Length in ft | H104: Price per ft of driptape
A105: Driptape - toro aqua-trax 5/8", 6 mil, 8 in, 0.5 gpm, 2500' | B105: 6 | C105: =B102/B105 -> 166.6666667 | D105: 4 | E105: =C105*D105 -> 666.6666667 | F105: 124 | G105: 2500 | H105: =F105/G105 -> 0.0496
A107: Irrigation Attachments
C108: Useful Life for Fixed Costs | D108: 3 | E108: Years
A109: From Irrigation King receipt Celeste | B109: Totalquantity from Celeste | C109: quantity for 1,000 | D109: price each unit | E109: Fixed cost | G109: Annual Purchase - Variable Costs
A110: 5/8" tape swivel X 5/8" tape swivel repair coupler | B110: 10 | C110: 5 | D110: 3.5 | E110: =C110*D110 -> 17.5 | G110: 5 | H110: =G110*D110 -> 17.5
A111: 8 mm punch red handle | B111: 1 | C111: 1 | D111: 6.95 | E111: 6.95 | H111: 0
A112: 5/8" tape end plug | B112: 20 | C112: 8 | D112: 5.2 | E112: 41.6 | G112: 2 | H112: 10.4
A113: starter mini-valve 10mm barb x 5/8" tape swivel | B113: 20 | C113: 8 | D113: 14.6 | E113: 116.8 | G113: 2 | H113: 29.2
A114: 3/4" permaloc elbow 800 series | B114: 1 | C114: 1 | D114: 3.69 | E114: 3.69 | H114: 0
A115: 3/4" permaloc x 3/4" MHT w cap plug 800 series | B115: 2 | C115: 1 | D115: 4.3 | E115: 4.3 | H115: 0 | J115: City | K115: Water prices per 1,000 gallons
A116: 3/4" permaloc coupler 800 series | B116: 2 | C116: 1 | D116: 4.32 | E116: 4.32 | H116: 0 | J116: Lebanon | K116: 10.968
A117: 3/4" permaloc x 3/4" FHT 800 series | B117: 2 | C117: 1 | D117: 6.06 | E117: 6.06 | H117: 0 | J117: Murfreesboro | K117: 3.66
A118: 3/4" permaloc x 3/4 MPT 800 series | B118: 2 | C118: 1 | D118: 2.76 | E118: 2.76 | H118: 0 | J118: Bristol | K118: 6.28
E119: 0 | H119: 0 | J119: Springfield | K119: 6.58
A120: From Dripworks receipt Celeste | E120: 0 | H120: 0 | J120: Fayetteville | K120: 7.83
A121: Mainline 3/4" poly tubing - 100 ft | B121: 1 | C121: 1 | D121: 31.95 | E121: 31.95 | H121: 0 | J121: Clinton | K121: 5.7
A122: 3/4 easy loc coupler | B122: 2 | D122: 4.98 | E122: 0 | G122: 2 | H122: 9.96 | J122: State average | K122: =AVERAGE(K116:K121) -> 6.836333333
A123: 3/4" easy loc elbow | B123: 2 | C123: 1 | D123: 7.78 | E123: 7.78 | H123: 0
A124: 3/4" easy loc x male hose end | B124: 1 | C124: 1 | D124: 1.59 | E124: 1.59 | H124: 0 | J124: Days to Maturity | L124: avg days to maturity
A125: 3/4" easy loc tee | B125: 1 | C125: 1 | D125: 5.95 | E125: 5.95 | H125: 0 | J125: 85 | K125: 100 | L125: =AVERAGE(J125:K125) -> 92.5
A126: 3/4" easy loc valve | B126: 1 | C126: 1 | D126: 4.95 | E126: 4.95 | H126: 0 | L126: =L125/7 -> 13.21428571
A127: shipping - do we include? (none on irrigation king) | C127: 1 | D127: 14.95 | E127: 14.95 | H127: 0 | L127: =ROUND(L126,0) -> 13 | M127: 13 weeks to maturity
C128: Total fixed cost | E128: =SUM(E110:E127) -> 271.15 | G128: Total | H128: =SUM(H110:H127) -> 67.06
D129: 3 Year Spread | E129: =E128/D108 -> 90.38333333
E130: =E129*0.2 -> 18.07666667
A131: Irrigation Usage Cost | B131: Inches of water to deliver | C131: Hours to run to deliver water | D131: minutes run | E131: Feet of driptape | F131: Gallons per minute emitted | G131: Total gallons emitted per minute for 1,000 sq feet | H131: Gallons per week | I131: Weeks to water (weeks to maturity from planting divided by 2) | J131: Total Gallons | K131: Thousand gallons | L131: Price per 1,000 gallon of water
A132: 0.5 GPM drip line at 12” emitter spacing | B132: 1 | C132: =5.8 -> 5.8 | D132: =C132*60 -> 348 | E132: 666.67 | F132: 0.5 | G132: 6.67 | H132: =G132*D132 -> 2321.16 | I132: =L127/2 -> 6.5 | J132: =H132*I132 -> 15087.54 | K132: =J132/1000 -> 15.08754 | L132: =K122 -> 6.836333333 | M132: =L132*K132 -> 103.1434526
C133: Penn state: https://extension.psu.edu/determining-how-long-to-run-drip-irrigation-systems-for-vegetables
A135: Harvest Containers
B136: Number of containers | C136: 10 L, 10 count johnnys | D136: price each bucket | E136: total cost
A137: Harvest containers | B137: 100 | C137: 20.5 | D137: =C137/10 -> 2.05 | E137: =B137*D137 -> 205 | F137: https://www.johnnyseeds.com/tools-supplies/cut-flower-supplies/flower-buckets/flower-buckets-10-l-10-count-7824.html
A139: Labor Based on 1/4 acre operation, one full time employee
B140: Hours per week for 1/4 acre | C140: Number of crops in 1/4 acre at one time | D140: Hours per wk devoted to this crop | E140: Avg Number of weeks to produce this crop | F140: Total hours devoted to crop
B141: 40 | C141: 5 | D141: =B141/C141 -> 8 | E141: =L127+2 -> 15 | F141: =D141*E141 -> 120 | H141: Weeks to produce this crop determined from weeks to maturity of the crop from planting
B143: Labor rate | C143: 15.87 | D143: https://flag.dol.gov/wage-data/adverse-effect-wage-rates#range
A146: Land Rent
A147: Land - cash rent | B147: 1,000 sq. ft. | C147: 1 | D147: 25 | E147: Cash rental rates are based on the 2022 USDA-NASS reported cash rental rates for irrigated cropland in Tennessee ($187/acre).
A149: Large Equipment
A150: Tiller | B150: 4000 | C150: 5 Year Depreciation | D150: =B150*0.42 -> 1680 | E150: https://www.bcsamerica.com/product/model-732
B151: =((B150-D150)/5)*0.2 -> 92.8 | C151: Per Year | D151: Salvage Value
A152: *Sharing cost with other sections of 1/4 acre | B152: =B151*0.2 -> 18.56
A153: Lawn Mower | B153: 2000 | C153: 5 Year Depreciation | D153: =B153*0.36 -> 720 | E153: https://www.foards.com/collections/bad-boy-mowers/products/bby25fj180
B154: =((B153-D153)/5)*0.2 -> 51.2 | C154: Per Year | D154: Salvage Value
A155: *Sharing cost with other sections of 1/4 acre | B155: =B154*0.2 -> 10.24
A157: Machinery Repair and Maintenance 5% | B157: =((B150+B153)*0.05)*0.2 -> 60
A159: Small Equipment
A160: - EcoCart Hookup Kit | B160: 692.11 | G160: QC Supply
A161: - Mulch Hole Burner | B161: 350 | G161: https://www.johnnyseeds.com/tools-supplies/mulches-and-weed-barrier/mulch-tools-accessories/mulch-hole-burners/mulch-hole-burner-starter-kit-7664.0.html?utm_source=google&utm_medium=cpc&utm_campaign=BL%20|%20PMAX%20|%20Tools%20&%20Supplies&utm_keyword=&gad_source=1&gclid=CjwKCAiA6t-6BhA3EiwAltRFGM_mVcoh-t7zeG2pT1Q5rWVXhXudQjk49l5oKaiZk0BBQfONmWn3pxoC2K4QAvD_BwE
A162: - Craftsman Large Shovels (2) $25 | B162: 50 | G162: https://www.lowes.com/pd/CRAFTSMAN-45-in-Wood-Handle-Digging-Shovel/5015343867
A163: - Craftsman Large Heavy Rake (1) $25 | B163: 25 | G163: Lowes
A164: - Craftsman Leaf Rake (1) $25 | B164: 25 | G164: Lowes
A165: - Craftsman Garden Hoe (1) $25 | B165: 25 | G165: Lowes
A166: - Craftsman Stirrup Hoe (1) $28 | B166: 28 | G166: Lowes
A167: - Craftsman Wheel Barrow (1) $120 | B167: 120 | G167: Lowes
A168: - Fiskars Hand Pruners (2) $30 | B168: 60 | G168: Lowes
A169: - Fiskars Lopper (1) | B169: 35 | G169: Lowes
A170: - Garden Hand Tool Set (1) | B170: 50 | G170: Lowes
A171: - Garden Gloves (2) | B171: 40 | G171: https://www.lowes.com/pd/Miracle-Gro-SYNTH-LEATHER-HI-DEX-GLOVES-M/1002630254
A172: - Rubber Mallet (staples) | B172: 20
A173: - Hammer (2) $6 | B173: 12
A174: Total | B174: =SUM(B160:B173) -> 1532.11 | C174: Lasts for 3 Years
A175: *Sharing cost with other sections of 1/4 acre | B175: =(B174/3)*0.2 -> 102.1406667
A177: Fuel
D178: Gallons | E178: Price per Gallon | H178: gallons fuel used
A179: Lawn Mower for 1,000 sq. ft. | B179: .1 Gallons | C179: Mow 24 Times | D179: =0.1*24 -> 2.4 | E179: 3.75 | F179: =D179*E179 -> 9 | G179: =ROUNDUP(D179,0) -> 3 | H179: =G179+D180 -> 6
A180: Tiller for 1,000 sq. ft. | B180: .75 Gallons | C180: 4 Passes | D180: =0.75*4 -> 3 | E180: 3.75 | F180: =D180*E180 -> 11.25
A181: Propane for Mulch Burner (1lb. Propane Cylinder) 20% in lbs | B181: 2 | C181: 13 | E181: =C181/B181 -> 6.5 | F181: =(13)*0.2 -> 2.6 | G181: https://www.lowes.com/pd/BernzOmatic-1-lb-2-Pack-Pre-Filled-Propane-Tank/50235565
B182: =B181*0.2 -> 0.4 | E182: Total | F182: =SUM(F179:F181) -> 22.85
A184: Building Expenses
B185: Purchase | E185: Salvage | F185: Salvage | G185: Average | H185: Useful | J185: Interest | M185: Property
A186: Item | B186: Price | C186: Units | D186: Cost | E186: Percent | F186: Value | G186: Value | H186: Life | I186: Depreciation | J186: Rate | K186: Interest | L186: Insurance | M186: Tax | N186: Repairs
A187: Storage and Post Harvest Handling Building (15'X20'X16') | B187: 10000 | C187: 1 | D187: =B187*C187 -> 10000 | E187: 0.25 | F187: =D187*E187 -> 2500 | G187: =(D187+F187+I187)/2 -> 6500 | H187: 15 | I187: =(D187-F187)/H187 -> 500 | J187: 0.07 | K187: =(CUMIPMT(J187,5,B187,1,5,1)/20)*-1 -> 69.83807112 | L187: =G187*0.005 -> 32.5 | M187: =G187*0.005 -> 32.5 | N187: =D187*0.02 -> 200
M189: Total Annual Cost for 1/4 acre operation | N189: =I187+K187+L187+M187+N187 -> 834.8380711
M190: Total Annual Cost for this crop (20% of total) | N190: =N189*0.2 -> 166.9676142
